fUSD/lending_fUSD_20240805
["ID","MTS","AMOUNT","RATE_DAILY","PERIOD"]
[334218484,1722844044830,-500.0,0.00043835,60]
[334218485,1722844044870,-500.0,0.00043835,60]
[334218486,1722844044910,-399.90334671,0.00043835,60]
[334218487,1722844044950,-500.70355738,0.00043835,60]
[334218488,1722844044990,-557.25,0.00043835,60]
[334218489,1722844045030,-500.0,0.00043835,60]
[334218490,1722844045076,-500.0,0.00043835,60]
[334218491,1722844045115,-781.71,0.00043835,60]
[334218492,1722844045154,-2245.48,0.00043835,60]
[334218493,1722844045191,-2495.7,0.00043835,60]
[334218494,1722844045228,-500.0,0.00043835,60]
[334218495,1722844045267,-3163.86,0.00043835,60]
[334218496,1722844045309,-1479.42,0.00043835,60]
[334218497,1722844045354,-500.0,0.00043835,60]
[334218498,1722844045392,-2335.18,0.00043835,60]
[334218499,1722844045431,-500.0,0.00043835,60]
[334218500,1722844045471,-2512.24,0.00043835,60]
[334218501,1722844045508,-500.0,0.00043835,60]
[334218502,1722844045545,-500.0,0.00043835,60]
[334218503,1722844045581,-500.0,0.00043835,60]
[334218504,1722844045618,-500.0,0.00043835,60]
[334218505,1722844045653,-500.0,0.00043835,60]
[334218506,1722844045688,-500.0,0.00043835,60]
[334218507,1722844045724,-2546.71,0.00043835,60]
[334218508,1722844045760,-1318.12,0.00043835,60]
[334218509,1722844045797,-273.22409912,0.00043835,60]
[334218510,1722844045835,-2643.24,0.00043835,60]
[334218511,1722844045873,-500.26215615,0.00043835,60]
[334218512,1722844045912,-500.0,0.00043835,60]
[334218513,1722844045953,-3011.57,0.00043835,60]
[334218514,1722844045991,-500.0,0.00043835,60]
[334218515,1722844046029,-827.48,0.00043835,60]
[334218516,1722844046069,-500.0,0.00043835,60]
[334218517,1722844046112,-300.0,0.00043835,60]
[334218518,1722844046150,-10089.31,0.00043835,60]
[334218519,1722844046186,-500.0,0.00043835,60]
[334218520,1722844046222,-500.0,0.00043835,60]
[334218521,1722844046260,-500.0,0.00043835,60]
[334218522,1722844046296,-500.0,0.00043835,60]
[334218523,1722844046336,-500.0,0.00043835,60]
[334218524,1722844046373,-500.0,0.00043835,60]
[334218525,1722844046640,-500.0,0.00043835,60]
[334218526,1722844046680,-500.0,0.00043835,60]
[334218527,1722844046719,-500.0,0.00043835,60]
[334218528,1722844046760,-500.0,0.00043835,60]
[334218529,1722844046798,-2761.8,0.00043835,60]
[334218530,1722844046836,-875.89,0.00043835,60]
[334218531,1722844046873,-500.0,0.00043835,60]
[334218532,1722844046911,-909.27,0.00043835,60]
[334218533,1722844046949,-1834.13,0.00043835,60]
[334218534,1722844046987,-500.82483072,0.00043835,60]
[334218535,1722844047025,-500.0,0.00043835,60]
[334218536,1722844047062,-500.0,0.00043835,60]
[334218537,1722844047110,-1594.18,0.00043835,60]
[334218538,1722844047149,-904.65,0.00043835,60]
[334218539,1722844047186,-500.0,0.00043835,60]
[334218540,1722844047221,-501.27171325,0.00043835,60]
[334218541,1722844047256,-500.0,0.00043835,60]
[334218542,1722844047290,-501.26871783,0.00043835,60]
[334218543,1722844047331,-1166.66,0.00043835,60]
[334218544,1722844047368,-500.0,0.00043835,60]
[334218545,1722844047404,-500.0,0.00043835,60]
[334218546,1722844047442,-3601.46,0.00043835,60]
[334218547,1722844047479,-927.02,0.00043835,60]
[334218548,1722844047514,-5377.57,0.00043835,60]
[334218549,1722844047549,-3723.72,0.00043835,60]
[334218550,1722844047584,-23612.73,0.00043835,60]
[334218551,1722844047619,-856.68,0.00043835,60]
[334218552,1722844047655,-500.0,0.00043835,60]
[334218553,1722844047690,-500.0,0.00043835,60]
[334218554,1722844047726,-2267.85,0.00043835,60]
[334218555,1722844047766,-500.0,0.00043835,60]
[334218556,1722844047805,-500.0,0.00043835,60]
[334218557,1722844047851,-1760.51,0.00043835,60]
[334218558,1722844047888,-500.0,0.00043835,60]
[334218559,1722844047926,-2589.98,0.00043835,60]
[334218560,1722844047966,-500.0,0.00043835,60]
[334218561,1722844048004,-2428.43,0.00043835,60]
[334218562,1722844048042,-6443.39,0.00043835,60]
[334218563,1722844048082,-500.0,0.00043835,60]
[334218564,1722844048119,-844.83,0.00043835,60]
[334218565,1722844048156,-1790.38,0.00043835,60]
[334218566,1722844048194,-500.0,0.00043835,60]
[334218567,1722844048230,-500.0,0.00043835,60]
[334218568,1722844048270,-1239.85,0.00043835,60]
[334218569,1722844048307,-500.0,0.00043835,60]
[334218570,1722844048356,-2135.68,0.00043835,60]
[334218571,1722844048396,-7781.8,0.00043835,60]
[334218572,1722844048438,-500.0,0.00043835,60]
[334218573,1722844048477,-500.93353645,0.00043835,60]
[334218574,1722844048516,-500.0,0.00043835,60]
[334218575,1722844048555,-500.0,0.00043835,60]
[334218576,1722844048607,-3762.63,0.00043835,60]
[334218577,1722844048647,-12434.34,0.00043835,60]
[334218578,1722844048687,-500.0,0.00043835,60]
[334218579,1722844048730,-501.45867511,0.00043835,60]
[334218580,1722844048769,-500.0,0.00043835,60]
[334218581,1722844048810,-29175.13,0.00043835,60]
[334218582,1722844048847,-1702.7,0.00043835,60]
[334218583,1722844048887,-2229.68,0.00043835,60]
[334218584,1722844048927,-3079.71,0.00043835,60]
[334218585,1722844048966,-2685.43,0.00043835,60]
[334218586,1722844049007,-643.98613459,0.00043835,60]
[334218587,1722844049049,-12156.11,0.00043835,60]
[334218588,1722844049091,-500.0,0.00043835,60]
[334218589,1722844049131,-676.45,0.00043835,60]
[334218590,1722844049168,-500.0,0.00043835,60]
[334218591,1722844049206,-500.0,0.00043835,60]
[334218592,1722844049243,-11527.03,0.00043835,60]
[334218593,1722844049281,-2942.99,0.00043835,60]
[334218594,1722844049326,-5533.89,0.00043835,60]
[334218595,1722844049363,-500.0,0.00043835,60]
[334218596,1722844049403,-500.0,0.00043835,60]
[334218597,1722844049445,-1147.24,0.00043835,60]
[334218598,1722844049484,-500.0,0.00043835,60]
[334218599,1722844049522,-500.0,0.00043835,60]
[334218600,1722844049561,-500.0,0.00043835,60]
[334218601,1722844049603,-2844.29,0.00043835,60]
[334218602,1722844049642,-966.49,0.00043835,60]
[334218603,1722844049684,-7052.9,0.00043835,60]
[334218604,1722844049723,-500.0,0.00043835,60]
[334218605,1722844049761,-500.0,0.00043835,60]
[334218606,1722844049799,-1533.46,0.00043835,60]
[334218607,1722844049844,-1600.86,0.00043835,60]
[334218608,1722844049883,-544.2751617,0.00043835,60]
[334218609,1722844049921,-500.0,0.00043835,60]
[334218610,1722844049960,-500.0,0.00043835,60]
[334218611,1722844050000,-4113.34,0.00043835,60]
[334218612,1722844050040,-1215.01,0.00043835,60]
[334218613,1722844050083,-397.23248018,0.00043835,60]
[334218614,1722844050123,-1182.78,0.00043835,60]
[334218615,1722844050168,-500.0,0.00043835,60]
[334218616,1722844050207,-500.0,0.00043835,60]
[334218617,1722844050244,-501.3332264,0.00043835,60]
[334218618,1722844050284,-7563.74,0.00043835,60]
[334218619,1722844050324,-500.0,0.00043835,60]
[334218620,1722844050364,-885.81,0.00043835,60]
[334218621,1722844050405,-2342.88,0.00043835,60]
[334218622,1722844050445,-600.6,0.00043835,60]
[334218623,1722844050486,-533.58,0.00043835,60]
[334218624,1722844050525,-500.0,0.00043835,60]
[334218625,1722844050565,-2470.61,0.00043835,60]
[334218626,1722844050608,-1107.73,0.00043835,60]
[334218627,1722844050647,-3795.26,0.00043835,60]
[334218628,1722844050686,-623.25,0.00043835,60]
[334218629,1722844050725,-500.0,0.00043835,60]
[334218630,1722844051000,-500.0,0.00043835,60]
[334218631,1722844051041,-2147.31,0.00043835,60]
[334218632,1722844051084,-11685.73,0.00043835,60]
[334218633,1722844051124,-817.97,0.00043835,60]
[334218634,1722844051164,-500.0,0.00043835,60]
[334218635,1722844051203,-658.81,0.00043835,60]
[334218636,1722844051242,-4333.16,0.00043835,60]
[334218637,1722844051281,-500.0,0.00043835,60]
[334218638,1722844051320,-500.0,0.00043835,60]
[334218639,1722844051366,-3360.52,0.00043835,60]
[334218640,1722844051407,-2451.49,0.00043835,60]
[334218641,1722844051447,-2337.27,0.00043835,60]
[334218642,1722844051489,-5093.48,0.00043835,60]
[334218643,1722844051529,-780.37,0.00043835,60]
[334218644,1722844051568,-1845.9,0.00043835,60]
[334218645,1722844051608,-500.0,0.00043835,60]
[334218646,1722844051648,-1210.22,0.00043835,60]
[334218647,1722844051686,-1970.75,0.00043835,60]
[334218648,1722844051725,-500.0,0.00043835,60]
[334218649,1722844051767,-500.0,0.00043835,60]
[334218650,1722844051807,-500.0,0.00043835,60]
[334218651,1722844051848,-500.0,0.00043835,60]
[334218652,1722844051889,-2131.79,0.00043835,60]
[334218653,1722844051929,-500.0,0.00043835,60]
[334218654,1722844051967,-1931.56,0.00043835,60]
[334218655,1722844052004,-16403.65,0.00043835,60]
[334218656,1722844052043,-1282.11,0.00043835,60]
[334218657,1722844052088,-1001.83,0.00043835,60]
[334218658,1722844052130,-500.0,0.00043835,60]
[334218659,1722844052169,-6034.41,0.00043835,60]
[334218660,1722844052206,-500.0,0.00043835,60]
[334218661,1722844052245,-587.76,0.00043835,60]
[334218662,1722844052287,-500.0,0.00043835,60]
[334218663,1722844052328,-809.03,0.00043835,60]
[334218664,1722844052367,-979.75,0.00043835,60]
[334218665,1722844052404,-1311.26,0.00043835,60]
[334218666,1722844052441,-500.0,0.00043835,60]
[334218667,1722844052477,-529.54010461,0.00043835,60]
[334218668,1722844052513,-500.0,0.00043835,60]
[334218669,1722844052548,-500.0,0.00043835,60]
[334218670,1722844052586,-500.0,0.00043835,60]
[334218671,1722844052624,-500.0,0.00043835,60]
[334218672,1722844052661,-500.0,0.00043835,60]
[334218673,1722844052701,-5522.16,0.00043835,60]
[334218674,1722844052739,-4237.06,0.00043835,60]
[334218675,1722844052782,-2782.82,0.00043835,60]
[334218676,1722844052819,-500.0,0.00043835,60]
[334218677,1722844052862,-500.0,0.00043835,60]
[334218678,1722844052899,-500.0,0.00043835,60]
[334218679,1722844052935,-1443.28,0.00043835,60]
[334218680,1722844052972,-500.0,0.00043835,60]
[334218681,1722844053009,-500.0,0.00043835,60]
[334218682,1722844053048,-500.0,0.00043835,60]
[334218683,1722844053092,-500.0,0.00043835,60]
[334218684,1722844053133,-500.0,0.00043835,60]
[334218685,1722844053173,-500.0,0.00043835,60]
[334218686,1722844053213,-500.0,0.00043835,60]
[334218687,1722844053250,-500.0,0.00043835,60]
[334218688,1722844053287,-500.0,0.00043835,60]
[334218689,1722844053333,-4203.96,0.00043835,60]
[334218690,1722844053372,-430.10317559,0.00043835,60]
[334218691,1722844053412,-500.0,0.00043835,60]
[334218692,1722844053454,-1207.51,0.00043835,60]
[334218693,1722844053494,-500.0,0.00043835,60]
[334218694,1722844053532,-648.98,0.00043835,60]
[334218695,1722844053571,-1043.74,0.00043835,60]
[334218696,1722844053613,-7649.72,0.00043835,60]
[334218697,1722844053653,-4279.22,0.00043835,60]
[334218698,1722844053692,-500.0,0.00043835,60]
[334218699,1722844053732,-4848.54,0.00043835,60]
[334218700,1722844053772,-500.0,0.00043835,60]
[334218701,1722844053812,-500.0,0.00043835,60]
[334218702,1722844053857,-1091.71,0.00043835,60]
[334218703,1722844053897,-500.0,0.00043835,60]
[334218704,1722844053937,-500.0,0.00043835,60]
[334218705,1722844053976,-500.0,0.00043835,60]
[334218706,1722844054014,-501.4094139,0.00043835,60]
[334218707,1722844054055,-1603.88,0.00043835,60]
[334218708,1722844054104,-724.93,0.00043835,60]
[334218709,1722844054144,-500.0,0.00043835,60]
[334218710,1722844054186,-3030.88,0.00043835,60]
[334218711,1722844054224,-2492.89,0.00043835,60]
[334218712,1722844054263,-500.0,0.00043835,60]
[334218713,1722844054301,-500.0,0.00043835,60]
[334218714,1722844054339,-500.0,0.00043835,60]
[334218715,1722844054378,-2806.39,0.00043835,60]
[334218716,1722844054417,-5187.62,0.00043835,60]
[334218717,1722844054456,-4337.32,0.00043835,60]
[334218718,1722844054496,-3047.68,0.00043835,60]
[334218719,1722844054534,-1406.83,0.00043835,60]
[334218720,1722844054578,-500.0,0.00043835,60]
[334218721,1722844054615,-500.0,0.00043835,60]
[334218722,1722844054656,-500.0,0.00043835,60]
[334218723,1722844054697,-3751.26,0.00043835,60]
[334218724,1722844054736,-500.0,0.00043835,60]
[334218725,1722844054777,-3262.95,0.00043835,60]
[334218726,1722844054818,-500.0,0.00043835,60]
[334218727,1722844054867,-500.0,0.00043835,60]
[334218728,1722844054909,-500.0,0.00043835,60]
[334218729,1722844054950,-500.0,0.00043835,60]
[334218730,1722844054995,-8978.52,0.00043835,60]
[334218731,1722844055036,-2169.05,0.00043835,60]
[334218732,1722844055083,-500.0,0.00043835,60]
[334218733,1722844055123,-500.33888853,0.00043835,60]
[334218734,1722844055163,-25334.1,0.00043835,60]
[334218735,1722844055418,-2712.85,0.00043835,60]
[334218736,1722844055469,-2362.58,0.00043835,60]
[334218737,1722844055507,-500.0,0.00043835,60]
[334218738,1722844055546,-500.0,0.00043835,60]
[334218739,1722844055587,-500.0,0.00043835,60]
[334218740,1722844055625,-500.0,0.00043835,60]
[334218741,1722844055665,-500.0,0.00043835,60]
[334218742,1722844055702,-500.0,0.00043835,60]
[334218743,1722844055739,-774.42,0.00043835,60]
[334218744,1722844055778,-500.0,0.00043835,60]
[334218745,1722844055818,-2055.64,0.00043835,60]
[334218746,1722844055863,-500.0,0.00043835,60]
[334218747,1722844055900,-953.05,0.00043835,60]
[334218748,1722844055938,-500.0,0.00043835,60]
[334218749,1722844055975,-592.17,0.00043835,60]
[334218750,1722844056016,-5633.77,0.00043835,60]
[334218751,1722844056058,-500.0,0.00043835,60]
[334218752,1722844056098,-500.63358936,0.00043835,60]
[334218753,1722844056139,-4804.66,0.00043835,60]
[334218754,1722844056177,-500.0,0.00043835,60]
[334218755,1722844056215,-500.0,0.00043835,60]
[334218756,1722844056253,-1844.98,0.00043835,60]
[334218757,1722844056291,-500.0,0.00043835,60]
[334218758,1722844056335,-7321.46,0.00043835,60]
[334218759,1722844056376,-2404.07,0.00043835,60]
[334218760,1722844056414,-500.0,0.00043835,60]
[334218761,1722844056453,-889.29,0.00043835,60]
[334218762,1722844056491,-501.64075335,0.00043835,60]
[334218763,1722844056527,-563.7,0.00043835,60]
[334218764,1722844056563,-500.0,0.00043835,60]
[334218765,1722844056598,-1452.56,0.00043835,60]
[334218766,1722844056634,-2837.34,0.00043835,60]
[334218767,1722844056671,-1383.25,0.00043835,60]
[334218768,1722844056710,-762.26,0.00043835,60]
[334218769,1722844056749,-500.0,0.00043835,60]
[334218770,1722844056789,-500.0,0.00043835,60]
[334218771,1722844056830,-26982.14,0.00043835,60]
[334218772,1722844056877,-1636.8,0.00043835,60]
[334218773,1722844056915,-7058.56,0.00043835,60]
[334218774,1722844056954,-7058.56,0.00043835,60]
[334218775,1722844056994,-1626.31,0.00043835,60]
[334218776,1722844057034,-500.0,0.00043835,60]
[334218777,1722844057074,-7058.56,0.00043835,60]
[334218778,1722844057119,-7058.56,0.00043835,60]
[334218779,1722844057159,-500.0,0.00043835,60]
[334218780,1722844057198,-7058.56,0.00043835,60]
[334218781,1722844057237,-7058.56,0.00043835,60]
[334218782,1722844057277,-19915.03,0.00043835,60]
[334218783,1722844057319,-7058.56,0.00043835,60]
[334218784,1722844057368,-1943.98,0.00043835,60]
[334218785,1722844057409,-7058.56,0.00043835,60]
[334218786,1722844057453,-7058.56,0.00043835,60]
[334218787,1722844057493,-7058.56,0.00043835,60]
[334218788,1722844057533,-7058.56,0.00043835,60]
[334218789,1722844057571,-520.21291242,0.00043835,60]
[334218790,1722844057613,-7058.56,0.00043835,60]
[334218791,1722844057650,-7058.56,0.00043835,60]
[334218792,1722844057687,-500.0,0.00043835,60]
[334218793,1722844057725,-500.0,0.00043835,60]
[334218794,1722844057762,-500.0,0.00043835,60]
[334218795,1722844057800,-7058.56,0.00043835,60]
[334218796,1722844057839,-1832.2,0.00043835,60]
[334218797,1722844057878,-7058.56,0.00043835,60]
[334218798,1722844057916,-7058.56,0.00043835,60]
[334218799,1722844057952,-500.0,0.00043835,60]
[334218800,1722844057992,-3461.41,0.00043835,60]
[334218801,1722844058030,-7058.56,0.00043835,60]
[334218802,1722844058069,-7058.56,0.00043835,60]
[334218803,1722844058111,-7058.56,0.00043835,60]
[334218804,1722844058151,-500.0,0.00043835,60]
[334218805,1722844058188,-3266.94,0.00043835,60]
[334218806,1722844058224,-7058.56,0.00043835,60]
[334218807,1722844058262,-7058.56,0.00043835,60]
[334218808,1722844058298,-7058.56,0.00043835,60]
[334218809,1722844058339,-7058.56,0.00043835,60]
[334218810,1722844058375,-500.0,0.00043835,60]
[334218811,1722844058412,-7058.72827894,0.00043835,60]
[334218812,1722844058450,-2283.58,0.00043835,60]
[334218813,1722844058486,-3881.78,0.00043835,60]
[334218814,1722844058522,-1405.12,0.00043835,60]
[334218815,1722844058559,-1444.46,0.00043835,60]
[334218816,1722844058595,-1405.12,0.00043835,60]
[334218817,1722844058630,-500.0,0.00043835,60]
[334218818,1722844058664,-500.0,0.00043835,60]
[334218819,1722844058698,-500.0,0.00043835,60]
[334218820,1722844058733,-1062.04,0.00043835,60]
[334218821,1722844058770,-1405.12,0.00043835,60]
[334218822,1722844058806,-1405.12,0.00043835,60]
[334218823,1722844058843,-500.0,0.00043835,60]
[334218824,1722844058879,-1405.12,0.00043835,60]
[334218825,1722844058915,-4891.1,0.00043835,60]
[334218826,1722844058952,-688.93,0.00043835,60]
[334218827,1722844058989,-1405.12,0.00043835,60]
[334218828,1722844059026,-1405.12,0.00043835,60]
[334218829,1722844059062,-1405.12,0.00043835,60]
[334218830,1722844059104,-9070.21,0.00043835,60]
[334218831,1722844059141,-500.0,0.00043835,60]
[334218832,1722844059179,-1405.12,0.00043835,60]
[334218833,1722844059214,-1405.12,0.00043835,60]
[334218834,1722844059248,-1375.72,0.00043835,60]
[334218835,1722844059281,-7616.7,0.00043835,60]
[334218836,1722844059315,-1405.12,0.00043835,60]
[334218837,1722844059356,-500.0,0.00043835,60]
[334218838,1722844059391,-1405.12,0.00043835,60]
[334218839,1722844059427,-1405.12,0.00043835,60]
[334218840,1722844059683,-1405.12,0.00043835,60]
[334218841,1722844059720,-500.0,0.00043835,60]
[334218842,1722844059755,-1405.12,0.00043835,60]
[334218843,1722844059790,-500.0,0.00043835,60]
[334218844,1722844059825,-1405.12,0.00043835,60]
[334218845,1722844059867,-1059.45,0.00043835,60]
[334218846,1722844059920,-2351.5,0.00043835,60]
[334218847,1722844059965,-1405.12,0.00043835,60]
[334218848,1722844060009,-500.0,0.00043835,60]
[334218849,1722844060053,-1405.12,0.00043835,60]
[334218850,1722844060105,-1405.12,0.00043835,60]
[334218851,1722844060150,-1299.44,0.00043835,60]
[334218852,1722844060194,-1405.12,0.00043835,60]
[334218853,1722844060238,-1405.12,0.00043835,60]
[334218854,1722844060279,-571.28,0.00043835,60]
[334218855,1722844060319,-1405.12,0.00043835,60]
[334218856,1722844060364,-500.0,0.00043835,60]
[334218857,1722844060403,-1764.44,0.00043835,60]
[334218858,1722844060443,-1405.12,0.00043835,60]
[334218859,1722844060482,-1405.21331696,0.00043835,60]
[334218860,1722844060520,-2213.87,0.00043835,60]
[334218861,1722844060556,-643.06,0.00043835,60]
[334218862,1722844060594,-501.27166026,0.00043835,60]
[334218863,1722844060630,-2982.8,0.00043835,60]
[334218864,1722844060665,-1594.4,0.00043835,60]
[334218865,1722844060701,-1551.67,0.00043835,60]
[334218866,1722844060738,-500.0,0.00043835,60]
[334218867,1722844060776,-724.03,0.00043835,60]
[334218868,1722844060814,-500.0,0.00043835,60]
[334218869,1722844060852,-5643.31,0.00043835,60]
[334218870,1722844060891,-1490.68,0.00043835,60]
[334218871,1722844060933,-2411.96,0.00043835,60]
[334218872,1722844060977,-1691.64,0.00043835,60]
[334218873,1722844061017,-571.4,0.00043835,60]
[334218874,1722844061058,-5579.05,0.00043835,60]
[334218875,1722844061101,-1240.95,0.00043835,60]
[334218876,1722844061142,-500.0,0.00043835,60]
[334218877,1722844061182,-500.0,0.00043835,60]
[334218878,1722844061221,-500.0,0.00043835,60]
[334218879,1722844061260,-500.0,0.00043835,60]
[334218880,1722844061300,-725.7,0.00043835,60]
[334218881,1722844061342,-725.7,0.00043835,60]
[334218882,1722844061382,-725.7,0.00043835,60]
[334218883,1722844061422,-725.7,0.00043835,60]
[334218884,1722844061461,-725.7,0.00043835,60]
[334218885,1722844061499,-725.7,0.00043835,60]
[334218886,1722844061537,-725.7,0.00043835,60]
[334218887,1722844061574,-725.7,0.00043835,60]
[334218888,1722844061616,-3652.18,0.00043835,60]
[334218889,1722844061657,-5016.19,0.00043835,60]
[334218890,1722844061697,-500.0,0.00043835,60]
[334218891,1722844061736,-725.7,0.00043835,60]
[334218892,1722844061779,-500.0,0.00043835,60]
[334218893,1722844061819,-500.0,0.00043835,60]
[334218894,1722844061863,-7025.34,0.00043835,60]
[334218895,1722844061905,-500.0,0.00043835,60]
[334218896,1722844061947,-725.7,0.00043835,60]
[334218897,1722844061987,-500.0,0.00043835,60]
[334218898,1722844062027,-725.7,0.00043835,60]
[334218899,1722844062070,-725.7,0.00043835,60]
[334218900,1722844062113,-579.57,0.00043835,60]
[334218901,1722844062155,-725.7,0.00043835,60]
[334218902,1722844062195,-628.44675438,0.00043835,60]
[334218903,1722844062235,-725.7,0.00043835,60]
[334218904,1722844062274,-1406.22,0.00043835,60]
[334218905,1722844062314,-725.7,0.00043835,60]
[334218906,1722844062354,-725.7,0.00043835,60]
[334218907,1722844062394,-725.7,0.00043835,60]
[334218908,1722844062436,-500.0,0.00043835,60]
[334218909,1722844062477,-725.7,0.00043835,60]
[334218910,1722844062514,-735.23,0.00043835,60]
[334218911,1722844062551,-3868.7,0.00043835,60]
[334218912,1722844062588,-725.7,0.00043835,60]
[334218913,1722844062625,-725.7,0.00043835,60]
[334218914,1722844062664,-725.7,0.00043835,60]
[334218915,1722844062704,-500.0,0.00043835,60]
[334218916,1722844062743,-500.0,0.00043835,60]
[334218917,1722844062782,-725.7,0.00043835,60]
[334218918,1722844062821,-725.7,0.00043835,60]
[334218919,1722844062860,-2230.38,0.00043835,60]
[334218920,1722844062898,-725.88,0.00043835,60]
[334218921,1722844062936,-825.84,0.00043835,60]
[334218922,1722844062974,-4726.84,0.00043835,60]
[334218923,1722844063013,-500.0,0.00043835,60]
[334218924,1722844063052,-8538.86,0.00043835,60]
[334218925,1722844063096,-7586.45,0.00043835,60]
[334218926,1722844063134,-824.94,0.00043835,60]
[334218927,1722844063172,-1618.35,0.00043835,60]
[334218928,1722844063210,-3040.72,0.00043835,60]
[334218929,1722844063250,-2769.02,0.00043835,60]
[334218930,1722844063286,-2016.71,0.00043835,60]
[334218931,1722844063321,-500.0,0.00043835,60]
[334218932,1722844063364,-4162.2,0.00043835,60]
[334218933,1722844063401,-500.0,0.00043835,60]
[334218934,1722844063440,-500.0,0.00043835,60]
[334218935,1722844063477,-500.0,0.00043835,60]
[334218936,1722844063514,-3492.83,0.00043835,60]
[334218937,1722844063550,-2868.0,0.00043835,60]
[334218938,1722844063591,-1709.17,0.00043835,60]
[334218939,1722844063629,-501.14386174,0.00043835,60]
[334218940,1722844063666,-1047.93,0.00043835,60]
[334218941,1722844063706,-500.0,0.00043835,60]
[334218942,1722844063746,-7310.49,0.00043835,60]
[334218943,1722844063787,-500.53667162,0.00043835,60]
[334218944,1722844064053,-500.0,0.00043835,60]
[334218945,1722844064098,-500.0,0.00043835,60]
[334218946,1722844064140,-4368.58,0.00043835,60]
[334218947,1722844064179,-3390.96,0.00043835,60]
[334218948,1722844064218,-500.0,0.00043835,60]
[334218949,1722844064259,-15103.54,0.00043835,60]
[334218950,1722844064297,-1720.87,0.00043835,60]
[334218951,1722844064338,-1394.86,0.00043835,60]
[334218952,1722844064375,-312.48290212,0.00043835,60]
[334218953,1722844064413,-7124.04,0.00043835,60]
[334218954,1722844064453,-596.78,0.00043835,60]
[334218955,1722844064492,-3300.66,0.00043835,60]
[334218956,1722844064534,-534.41,0.00043835,60]
[334218957,1722844064572,-1458.0,0.00043835,60]
[334218958,1722844064611,-785.7,0.00043835,60]
[334218959,1722844064646,-501.62017285,0.00043835,60]
[334218960,1722844064683,-500.0,0.00043835,60]
[334218961,1722844064722,-6415.11,0.00043835,60]
[334218962,1722844064759,-500.0,0.00043835,60]
[334218963,1722844064796,-500.0,0.00043835,60]
[334218964,1722844064837,-17611.88,0.00043835,60]
[334218965,1722844064878,-804.27,0.00043835,60]
[334218966,1722844064918,-500.0,0.00043835,60]
[334218967,1722844064957,-692.77,0.00043835,60]
[334218968,1722844064996,-2720.48,0.00043835,60]
[334218969,1722844065040,-4482.99,0.00043835,60]
[334218970,1722844065079,-3631.46,0.00043835,60]
[334218971,1722844065121,-208.83651781,0.00043835,60]
[334218972,1722844065160,-500.0,0.00043835,60]
[334218973,1722844065198,-500.0,0.00043835,60]
[334218974,1722844065234,-500.0,0.00043835,60]
[334218975,1722844065272,-2455.4,0.00043835,60]
[334218976,1722844065309,-545.35,0.00043835,60]
[334218977,1722844065348,-500.0,0.00043835,60]
[334218978,1722844065385,-728.33,0.00043835,60]
[334218979,1722844065422,-1906.54,0.00043835,60]
[334218980,1722844065460,-1801.04,0.00043835,60]
[334218981,1722844065498,-884.93,0.00043835,60]
[334218982,1722844065533,-500.0,0.00043835,60]
[334218983,1722844065570,-639.44,0.00043835,60]